bitfinex/quotes_ETHUSD_20220226
["timestamp","ask_amount","ask_price","bid_price","bid_amount"]
[1645877183129,0.07689677,2747.8,2747.1,1.18046776]
[1645877183130,0.07689677,2747.7,2747.1,1.18046776]
[1645877184329,0.00330256,2747.5,2747.1,1.18046776]
[1645877184563,0.00330256,2747.5,2747.2,0.00328117]
[1645877184766,0.00330256,2747.5,2747.2,1.51319275]
[1645877184966,0.00330256,2747.5,2747.1,1.18046776]
[1645877185367,3.5,2748.3,2747.1,1.18046776]
[1645877185568,0.00330256,2747.4,2747.2,1.51632092]
[1645877185767,0.00330256,2747.4,2747.3,0.00328117]
[1645877185970,0.00330256,2747.4,2747.1,1.18046776]
[1645877186367,0.00330256,2747.4,2747.2,1.51303335]
[1645877186567,12.55678425,2748.4,2747.2,1.51303335]
[1645877186769,0.00330256,2747.4,2747.2,1.51303335]
[1645877187067,0.00330256,2747.4,2747.3,0.00328117]
[1645877187267,0.00330256,2747.4,2747.2,1.51303335]
[1645877187469,0.00330256,2747.4,2747.1,1.18046776]
[1645877187670,0.07689273,2748.2,2747.1,1.18046776]
[1645877187871,0.07689273,2748.2,2747.2,0.00328117]
[1645877188071,0.00496419,2747.4,2747.2,0.00328117]
[1645877188324,0.00496419,2747.4,2747.1,1.18046776]
[1645877188917,0.91047,2748.4,2747.1,1.18046776]
[1645877189117,0.00496422,2747.4,2747.2,1.51603785]
[1645877189318,0.00496422,2747.4,2747.3,0.00328117]
[1645877189516,0.00496422,2747.4,2747.1,1.54316776]
[1645877189721,0.00496422,2747.4,2747.2,1.51280348]
[1645877190122,4.41047,2748.4,2747.2,1.51280348]
[1645877190324,0.00496419,2747.4,2747.3,0.00328117]
[1645877190526,0.00496419,2747.4,2747.2,1.51280348]
[1645877191326,0.91047,2748.4,2747.2,1.51280348]
[1645877191327,4.41047,2748.4,2747.2,1.51280348]
[1645877191527,0.00496419,2747.4,2747.3,0.00328117]
[1645877191727,0.00496419,2747.4,2747.3,0.3627]
[1645877191930,0.00496419,2747.4,2747.3,1.87550348]
[1645877192175,0.00496419,2747.4,2747.3,2.54390348]
[1645877192374,6.419e-05,2747.4,2747.3,8.54390348]
[1645877192576,0.07688169,2748.8,2747.4,0.00328117]
[1645877192776,0.07688169,2748.7,2747.7,0.54472]
[1645877192980,0.07688169,2748.6,2747.8,2.02090348]
[1645877193177,0.07688169,2748.5,2747.8,0.5081]
[1645877193376,0.07688169,2748.4,2747.8,0.8081]
[1645877193580,1.67811944,2749.0,2748.0,0.3627]
[1645877193879,0.076878,2748.9,2748.0,0.4454]
[1645877194175,0.076878,2748.9,2748.0,0.3]
[1645877194376,0.076878,2748.9,2747.7,0.1454]
[1645877194575,0.076878,2748.9,2747.9,0.3627]
[1645877194782,0.076878,2748.9,2748.0,0.1454]
[1645877194981,0.076878,2748.9,2747.9,0.6627]
[1645877195181,0.00330256,2748.5,2747.9,0.6627]
[1645877195405,0.00330256,2748.5,2748.4,1.16771315]
[1645877195583,0.00330256,2748.5,2747.9,0.6627]
[1645877195827,0.00330256,2748.5,2748.0,2.78680112]
[1645877196017,0.00330256,2748.5,2748.0,1.2727369]
[1645877196215,0.076878,2748.9,2748.0,2.2727369]
[1645877196422,0.076878,2748.9,2748.0,1.2727369]
[1645877196716,0.076878,2748.9,2748.0,1.4547469]
[1645877196717,0.00496365,2748.3,2748.0,1.4547469]
[1645877196917,0.00496365,2748.3,2748.0,1.0920469]
[1645877197117,0.00496365,2748.3,2747.8,1.8200281]
[1645877197322,1.67811944,2749.0,2747.9,1.51442042]
[1645877197323,2.3599828,2749.0,2747.9,1.51442042]
[1645877197519,0.07687603,2748.9,2747.9,1.81442042]
[1645877197720,0.00496368,2748.3,2748.2,1.08175741]
[1645877197921,0.00496368,2748.3,2748.2,0.97358167]
[1645877198321,0.08183926,2748.3,2748.2,0.97358167]
[1645877198530,1.67811944,2749.0,2748.2,0.97358167]
[1645877198723,0.00496362,2748.4,2748.2,0.97358167]
[1645877199121,0.07687532,2748.3,2748.2,0.97358167]
[1645877199321,0.00496362,2748.4,2748.2,0.97358167]
[1645877199777,0.02507449,2748.5,2748.2,1.27358167]
[1645877199977,0.02507449,2748.5,2748.2,0.97358167]
[1645877199978,0.08183715,2748.4,2748.2,0.97358167]
[1645877200177,0.00496358,2748.4,2748.2,1.27358167]
[1645877200580,0.00496358,2748.4,2748.3,1.88181285]
[1645877200780,0.00496358,2748.4,2748.3,1.51911285]
[1645877200981,0.02507449,2748.5,2748.3,1.51911285]
[1645877201178,0.03003804,2748.5,2748.3,1.51911285]
[1645877201383,0.00503804,2748.5,2748.3,2.42903585]
[1645877201683,0.00503804,2748.5,2748.4,2.70481285]
[1645877202078,0.00503804,2748.5,2748.4,3.70481285]
[1645877202278,7.449e-05,2748.5,2748.4,3.70481285]
[1645877203081,7.449e-05,2748.5,2748.4,10.98161285]
[1645877203328,1.67811944,2749.0,2748.6,1.45428]
[1645877203516,1.67811944,2749.0,2748.8,6.6362281]
[1645877203719,1.67811944,2749.0,2748.9,2.34211285]
[1645877204016,1.67811944,2749.0,2748.9,9.61771285]
[1645877204219,1.67811944,2749.0,2748.9,10.61771285]
[1645877204417,1.67811944,2749.0,2748.9,11.81754063]
[1645877205421,0.68186336,2749.9,2748.9,11.81754063]
[1645877205721,0.00224234,2750.0,2749.2,0.9096685]
[1645877205722,0.76096017,2750.0,2749.2,0.9096685]
[1645877205922,0.07685447,2749.9,2749.2,0.9096685]
[1645877206223,0.6841057,2750.0,2749.2,1.2096685]
[1645877206224,0.07685447,2749.8,2749.2,1.2096685]
[1645877206422,0.07685447,2749.7,2749.2,1.2096685]
[1645877206623,0.07685447,2749.6,2749.2,0.3]
[1645877206825,0.07685447,2749.5,2749.2,0.3]
[1645877207061,0.07685447,2749.4,2749.2,0.3]
[1645877207265,0.68186336,2749.9,2749.1,0.3]
[1645877207266,0.07685447,2749.3,2749.1,0.3]
[1645877207663,0.00496292,2749.5,2749.2,1.33548074]
[1645877207863,0.07685393,2749.4,2749.2,1.33548074]
[1645877208463,0.68186336,2749.9,2749.2,1.33548074]
[1645877208464,0.07685393,2749.3,2749.2,1.33548074]
[1645877208865,0.07685393,2749.4,2749.2,1.33548074]
[1645877209066,0.07685393,2749.3,2749.2,1.33548074]
[1645877209468,0.07685393,2749.4,2749.2,1.33548074]
[1645877209673,0.07685393,2749.3,2749.2,1.33548074]
[1645877210270,0.00496301,2749.4,2749.2,1.33548074]
[1645877210470,0.00496301,2749.4,2749.2,2.54509324]
[1645877210669,0.00224234,2750.0,2749.2,2.54509324]
[1645877210670,0.00224234,2750.0,2749.9,1.29402313]
[1645877210913,0.00224234,2750.0,2749.3,1.1541]
[1645877210914,0.00496298,2749.4,2749.3,1.1541]
[1645877211916,0.00224234,2750.0,2749.3,1.1541]
[1645877211917,0.00224234,2750.0,2749.3,7.0398]
[1645877212118,0.00224234,2750.0,2749.6,0.72645]
[1645877212315,0.00224234,2750.0,2749.7,0.523]
[1645877212714,0.00224234,2750.0,2749.7,0.823]
[1645877212918,0.00224234,2750.0,2749.8,1.11026696]
[1645877213317,0.00224234,2750.0,2749.8,1.63326696]
[1645877214318,0.00224234,2750.0,2749.8,1.81513696]
[1645877214783,0.00224234,2750.0,2749.9,16.75407]
[1645877214784,4.234e-05,2750.0,2749.9,16.75407]
[1645877214980,4.234e-05,2750.0,2749.9,25.07095718]
[1645877215179,4.234e-05,2750.0,2749.9,25.85007]
[1645877215379,0.00392506,2751.4,2750.5,0.9090398]
[1645877215581,0.00392506,2751.4,2750.7,0.90903]
[1645877215779,0.01983441,2751.3,2751.2,1.06645219]
[1645877215980,0.01983441,2751.3,2750.7,0.823]
[1645877216679,0.00392506,2751.7,2750.7,3.0046741]
[1645877216881,0.00496009,2751.1,2750.9,0.18182]
[1645877217079,0.00496009,2751.1,2750.7,4.3046741]
[1645877217779,0.00392506,2751.6,2750.9,5.0]
[1645877217979,0.61631425,2752.5,2750.8,12.34757738]
[1645877217980,0.00392506,2751.7,2751.0,0.523]
[1645877218179,0.01983761,2751.5,2750.8,4.0265665]
[1645877218426,0.01983761,2751.5,2750.8,1.0]
[1645877218824,0.01983761,2751.5,2750.7,0.6]
[1645877219025,0.00392506,2751.9,2750.9,0.03186384]
[1645877219424,0.00392506,2751.9,2751.1,1.22889822]
[1645877219425,0.00496,2751.3,2751.1,1.22889822]
[1645877219932,0.00496,2751.3,2751.0,0.3]
[1645877220228,0.00392506,2751.9,2750.9,0.03186384]
[1645877220430,0.00495997,2751.3,2751.0,0.9090954]
[1645877220830,0.00495997,2751.3,2751.1,1.38581522]
[1645877221430,0.9130762,2752.1,2751.1,1.38581522]
[1645877221633,0.9130762,2752.1,2751.1,1.37055522]
[1645877221634,0.00495997,2751.3,2751.1,1.37055522]
[1645877221831,0.00495997,2751.3,2751.1,1.08893522]
[1645877222667,0.00392506,2752.1,2751.1,1.08893522]
[1645877222967,0.00479257,2751.3,2751.2,0.9090205]
[1645877223167,0.00479257,2751.3,2750.9,2.51349724]
[1645877223368,0.00479257,2751.3,2750.9,0.03186384]
[1645877223868,4.79519246,2751.8,2750.9,0.03186384]
[1645877223869,0.00392506,2751.6,2750.9,0.03186384]
[1645877224067,15.45179566,2751.8,2750.9,0.03186384]
[1645877224068,11.03392506,2751.7,2750.9,0.03186384]
[1645877224270,0.00479262,2751.2,2750.5,0.03506071]
[1645877224471,0.00479262,2751.2,2750.5,0.94434171]
[1645877224873,0.00479262,2751.2,2750.5,1.24434171]
[1645877225077,0.00392506,2751.6,2750.5,1.24434171]
[1645877225274,0.00392506,2751.8,2750.5,1.24434171]
[1645877225474,0.00479276,2751.0,2750.5,1.24434171]
[1645877226321,0.00392506,2751.8,2750.6,0.18185]
[1645877226522,0.0046685,2750.9,2750.8,0.9091577]
[1645877226723,0.0046685,2750.9,2750.8,2.15597906]
[1645877226925,0.0046685,2750.9,2750.8,5.65597906]
[1645877227123,0.0046685,2750.9,2750.8,13.52657906]
[1645877227324,0.0046685,2750.9,2750.8,15.04957906]
[1645877227523,0.00392506,2752.1,2751.2,0.9089078]
[1645877227726,0.00392506,2752.1,2751.3,3.5]
[1645877227925,0.01728126,2751.4,2751.1,2.2996055]
[1645877228125,0.01728126,2751.4,2751.2,0.3]
[1645877228725,0.01728126,2751.4,2751.0,1.2272]
[1645877228923,0.00392506,2751.9,2751.0,1.2272]
[1645877229124,0.00432074,2751.4,2751.0,1.2272]
[1645877229970,11.9430762,2752.2,2751.0,1.2272]
[1645877230171,0.00434879,2751.3,2751.0,1.2272]
[1645877231171,0.00392506,2752.0,2751.0,1.2272]
[1645877231373,0.00392506,2752.1,2751.2,0.9090344]
[1645877231572,0.00434882,2751.3,2751.2,0.3]
[1645877232173,0.00434882,2751.3,2751.0,1.2272]
[1645877232474,0.00438176,2751.4,2751.0,1.2272]
[1645877232875,0.00438176,2751.4,2750.8,7.2706]
[1645877233516,0.00392506,2751.7,2750.8,7.2706]
[1645877233715,0.00437994,2751.2,2750.8,7.2706]
[1645877234724,0.00392506,2751.6,2750.8,7.2706]
[1645877234922,0.00437999,2751.1,2750.8,7.2706]
[1645877235921,11.03392506,2751.9,2750.8,7.2706]
[1645877236126,0.0043768,2751.1,2750.8,7.2706]
[1645877237174,0.00392506,2751.8,2750.8,7.2706]
[1645877237374,0.00392506,2751.8,2750.8,8.17975]
[1645877237375,0.00437474,2751.1,2750.8,8.17975]
[1645877238174,0.00437474,2751.1,2750.8,9.17975]
[1645877238380,0.00392506,2751.8,2750.9,3.9454]
[1645877238577,0.01749633,2751.5,2751.1,0.9090533]
[1645877238776,0.01749633,2751.5,2751.1,4.5543533]
[1645877238975,0.01749633,2751.5,2751.1,4.9179433]
[1645877239176,0.01749633,2751.5,2751.2,0.3]
[1645877239377,0.01749633,2751.5,2751.4,1.13042684]
[1645877239579,0.00392506,2752.4,2751.4,2.18450744]
[1645877239781,0.00392506,2752.4,2751.5,3.6453]
[1645877239782,0.01749712,2751.9,2751.5,3.6453]
[1645877239979,0.01749712,2751.9,2751.5,6.9735826]
[1645877240180,0.01749712,2751.9,2751.6,0.70477]
[1645877240381,0.01749712,2751.9,2751.7,4.91675]
[1645877240585,0.01749712,2751.9,2751.8,4.3857]
[1645877240821,5.12465114,2753.1,2752.0,1.02925438]
[1645877240822,0.9130762,2753.0,2752.0,1.02925438]
[1645877241014,0.9130762,2753.0,2752.1,3.5]
[1645877241015,0.00392506,2753.0,2752.1,3.5]
[1645877241215,0.00392506,2753.0,2752.1,1.0]
[1645877241415,1.40915114,2753.2,2752.1,1.0]
[1645877241416,0.9130762,2753.1,2752.1,1.0]
[1645877241614,0.9130762,2753.1,2752.0,0.3]
[1645877241816,0.9130762,2753.1,2751.9,7.8190397]
[1645877242015,0.9130762,2753.1,2751.9,8.3420397]
[1645877242215,0.00297873,2752.7,2752.1,1.06956647]
[1645877242415,0.00297873,2752.7,2752.3,0.9086803]
[1645877242814,0.00297873,2752.7,2752.3,1.2086803]
[1645877243217,0.00297873,2752.7,2752.4,3.5]
[1645877243416,0.00297873,2752.7,2752.5,1.12427973]
[1645877243617,0.00297873,2752.7,2752.6,3.5]
[1645877243816,0.00297873,2752.7,2752.5,1.64727973]
[1645877244879,0.00297873,2752.7,2752.5,1.43145]
[1645877245080,0.00297873,2752.7,2752.5,0.523]
[1645877245681,0.00297873,2752.7,2752.5,0.52178984]
[1645877245883,0.01191311,2753.2,2752.5,0.52178984]
[1645877245884,0.00401021,2753.2,2752.5,0.52178984]
[1645877246082,0.90915114,2753.4,2752.7,0.9085432]
[1645877246280,0.00401021,2753.3,2752.7,0.9085432]
[1645877246480,0.90915114,2753.3,2752.7,0.9085432]
[1645877246886,0.00401021,2753.4,2752.3,0.66342]
[1645877246887,0.91316135,2753.4,2752.3,0.66342]
[1645877247080,0.00401021,2753.2,2752.3,0.96342]
[1645877247280,0.91316135,2753.3,2752.3,0.66342]
[1645877247480,0.90915114,2753.2,2752.3,0.96342]
[1645877247881,0.90915114,2753.2,2752.1,0.25]
[1645877247882,0.90915114,2753.1,2752.1,0.25]
[1645877248081,0.90915114,2753.1,2751.9,1.2017]
[1645877248082,0.90915114,2753.0,2751.9,1.2017]
[1645877248328,11.94316135,2752.9,2751.8,0.1453]
[1645877248526,11.94316135,2752.9,2751.4,0.25]
[1645877248527,11.03,2752.5,2751.4,0.25]
[1645877248724,2.00425016,2752.6,2751.4,0.25]
[1645877248927,0.00401021,2752.4,2751.4,0.25]
[1645877250225,1.44839302,2752.4,2751.4,0.25]
[1645877250425,2.35754416,2752.4,2751.4,0.25]
[1645877250626,11.93915114,2752.3,2751.4,0.25]
[1645877250827,11.93915114,2752.3,2751.0,1.8180437]
[1645877251027,0.00401021,2752.2,2751.0,1.8180437]
[1645877251427,11.03,2752.1,2750.8,7.2706]
[1645877251828,0.00401021,2752.0,2750.8,7.2706]
[1645877252578,0.91316135,2752.0,2750.8,7.2706]
[1645877253181,12.84848114,2751.9,2750.8,7.2706]
[1645877253381,11.03,2751.7,2750.8,7.2706]
[1645877253583,11.93915114,2751.7,2750.8,7.2706]
[1645877253981,11.03,2751.5,2750.8,7.2706]
[1645877254481,11.93915114,2751.5,2750.8,7.2706]
[1645877254687,11.03,2751.5,2750.8,7.2706]
[1645877254888,12.93915114,2751.5,2750.8,7.2706]
[1645877255086,11.03,2751.3,2750.8,7.2706]
[1645877256520,11.93915114,2751.3,2750.8,7.2706]
[1645877257922,0.00496272,2751.2,2750.8,7.2706]
[1645877258922,0.00496275,2751.1,2751.0,0.04240218]
[1645877259322,11.94411389,2751.1,2751.0,0.02210318]
[1645877259571,16.03496275,2751.1,2751.0,0.02210318]
[1645877259774,17.03496275,2751.1,2751.0,0.02210318]
[1645877259973,17.03,2751.1,2751.0,0.02210318]
[1645877260574,18.72466623,2751.1,2751.0,0.02210318]
[1645877260974,19.24766623,2751.1,2751.0,0.02210318]
[1645877261377,20.61657785,2751.1,2751.0,0.02210318]
[1645877261774,21.22662003,2751.1,2751.0,0.02210318]
[1645877261974,20.61030578,2751.1,2751.0,0.02210318]
[1645877262373,14.21563955,2751.1,2751.0,0.02210318]
[1645877263417,15.36045956,2751.1,2751.0,0.02210318]
[1645877263617,14.21563955,2751.1,2751.0,0.02210318]
[1645877263821,12.853,2751.1,2751.0,0.02210318]
[1645877264322,13.91563955,2751.1,2750.8,7.2706]
[1645877264517,12.03,2751.1,2750.8,7.2706]
[1645877264922,12.03460545,2751.1,2750.8,7.2706]
[1645877265826,1.00460545,2751.1,2750.8,7.2706]
[1645877266024,1.0,2751.1,2750.8,7.2706]
[1645877266221,11.03460545,2751.1,2750.8,7.2706]
[1645877266624,12.03460545,2751.1,2750.8,7.2706]
[1645877267068,1.0,2751.1,2750.8,7.2706]
[1645877267270,11.93762314,2751.2,2750.8,7.2706]
[1645877267469,0.00464039,2751.1,2750.8,7.2706]
[1645877268069,11.03,2751.0,2750.8,7.2706]
[1645877269174,12.03,2751.0,2750.8,7.2706]
[1645877269471,1.0,2751.0,2750.8,7.2706]
[1645877269675,11.93762314,2751.2,2750.8,7.2706]
[1645877269875,0.82139487,2751.1,2750.8,7.2706]
[1645877270475,0.00401021,2751.3,2750.8,7.2706]
[1645877270678,0.0185589,2751.5,2750.8,7.2706]
[1645877270679,0.00401021,2751.5,2750.8,7.2706]
[1645877270938,0.00401021,2751.6,2750.8,7.2706]
[1645877271137,1.42966636,2751.8,2750.8,7.2706]
[1645877271138,0.00401021,2751.7,2750.8,7.2706]
[1645877273039,0.00401021,2751.7,2751.1,1.33833917]
[1645877273243,12.10103702,2751.8,2750.8,7.2706]
[1645877273837,1.98039702,2751.8,2750.8,7.2706]
[1645877274039,1.07103702,2751.8,2750.8,7.2706]
[1645877274237,0.07103702,2751.8,2750.8,7.2706]
[1645877274442,0.07103702,2751.8,2750.9,0.3627]
[1645877274671,0.07103702,2751.8,2750.8,7.2706]
[1645877274672,0.00496256,2751.4,2750.8,7.2706]
[1645877274870,0.00496256,2751.4,2750.9,0.1453]
[1645877275071,0.00496256,2751.4,2751.2,1.17756513]
[1645877275468,1.36263955,2752.1,2751.2,1.17756513]
[1645877275469,1.36664976,2752.1,2751.2,1.17756513]
[1645877275671,0.00401021,2752.1,2751.2,1.17756513]
[1645877275874,0.00496256,2751.4,2750.9,0.1453]
[1645877276670,0.02385749,2751.9,2750.9,0.1453]
[1645877276671,0.00401021,2751.9,2750.9,0.1453]
[1645877277073,0.00401021,2751.9,2750.8,7.6333]
[1645877277074,0.00496266,2751.3,2750.8,7.6333]
[1645877277872,0.00401021,2751.9,2750.8,7.6333]
[1645877278325,0.00496272,2751.2,2750.8,7.6333]
[1645877278519,0.00496272,2751.2,2751.0,0.3627]
[1645877278721,0.00496272,2751.2,2750.9,1.3399829]
[1645877279119,0.01984789,2751.6,2750.8,7.6333]
[1645877279120,0.00401021,2751.6,2750.8,7.2706]
[1645877279320,0.00496272,2751.2,2750.8,7.2706]
[1645877280025,0.00496272,2751.2,2751.0,1.31709742]
[1645877280323,0.00401021,2751.5,2751.0,1.31709742]
[1645877280526,0.90807068,2751.7,2751.0,1.31709742]
[1645877280826,0.00496275,2751.1,2751.0,1.31709742]
[1645877281627,0.02385822,2751.6,2750.8,7.6333]
[1645877281628,0.00401021,2751.6,2750.8,7.6333]
[1645877281826,0.00496272,2751.2,2750.8,7.6333]
[1645877282673,0.00401021,2751.6,2750.8,7.6333]
[1645877282974,0.00494245,2751.1,2750.8,7.6333]
[1645877283978,0.00401021,2751.8,2750.8,8.6333]
[1645877284177,0.90807068,2752.1,2750.8,9.0786]
[1645877284178,0.00494239,2751.1,2750.8,9.0786]
[1645877284979,0.00494239,2751.1,2750.9,0.18182]
[1645877285177,0.90807068,2752.1,2751.6,1.16353099]
[1645877285178,0.00401021,2752.0,2751.6,1.16353099]
[1645877285480,0.90807068,2752.1,2751.0,0.3627]
[1645877285679,0.00401021,2752.0,2751.1,0.3627]
[1645877286726,0.00329277,2751.7,2751.1,0.3627]
[1645877286926,0.00329277,2751.7,2751.3,1.10388588]
[1645877287128,0.00329277,2751.7,2751.4,0.3627]
[1645877287526,0.91208089,2752.2,2751.4,0.3627]
[1645877287728,0.90807068,2752.3,2751.4,0.6627]
[1645877287933,0.00401021,2752.4,2751.4,0.6627]
[1645877287934,0.00329277,2751.7,2751.4,1.0294]
[1645877288729,0.00401021,2752.5,2751.6,0.3627]
[1645877288927,0.00401021,2752.5,2751.9,0.3627]
[1645877289129,0.01985807,2752.1,2751.9,0.3627]
[1645877289982,0.90807068,2752.5,2752.0,1.31398231]
[1645877290179,0.00496499,2752.1,2752.0,1.67668231]
[1645877290378,0.00496499,2752.1,2752.0,2.58542721]
[1645877290782,0.00496499,2752.1,2752.0,3.88542721]
[1645877290979,6.499e-05,2752.1,2752.0,4.40842721]
[1645877291180,0.00401021,2752.8,2752.1,0.3627]
[1645877291381,0.90807068,2752.9,2752.4,0.54442]
[1645877291579,0.00401021,2752.8,2752.4,0.54442]
[1645877291784,0.91208089,2753.1,2752.5,1.2712525]
[1645877291980,0.90807068,2753.1,2752.5,1.2712525]
[1645877292583,0.90807068,2753.1,2752.5,0.9085525]
[1645877292783,0.90807068,2753.1,2752.4,0.48172]
[1645877292981,0.00401021,2753.3,2752.3,2.1170926]
[1645877292982,0.90807068,2753.0,2752.3,2.1170926]
[1645877294124,0.90807068,2752.9,2752.1,1.13413135]
[1645877294325,1.36263955,2753.1,2752.1,1.13413135]
[1645877294326,0.90807068,2752.8,2752.1,0.00713135]
[1645877294525,0.90807068,2752.7,2752.1,0.00713135]
[1645877295134,0.00496042,2752.6,2752.1,0.00713135]
[1645877295330,0.9130311,2752.6,2751.8,0.25]
[1645877295528,0.91704131,2752.6,2751.7,1.2215]
[1645877296129,0.91208089,2752.6,2751.7,1.2215]
[1645877296330,0.0049606,2752.3,2751.7,1.2215]
[1645877297177,0.00401021,2752.6,2751.7,1.2215]
[1645877297578,0.00496052,2752.2,2751.7,1.2215]
[1645877298179,0.00496052,2752.2,2751.9,0.3627]
[1645877298383,0.00401021,2752.9,2751.9,0.3627]
[1645877298580,8.2431,2753.4,2751.9,0.3627]
[1645877298581,0.00401021,2752.6,2751.9,0.6627]
[1645877298779,0.00496046,2752.2,2751.9,0.6627]
[1645877298982,0.88688128,2753.1,2751.9,1.1857]
[1645877299180,7.8804,2753.4,2751.9,1.1857]
[1645877299381,4.3804,2753.4,2752.5,0.9085759]
[1645877299784,1.36263955,2753.5,2752.5,0.9085759]
[1645877299984,1.36263955,2753.5,2752.3,1.6534948]
[1645877300484,1.36263955,2753.5,2752.3,2.0161948]
[1645877300684,4.41253955,2753.6,2752.5,0.18172]
[1645877300935,3.0499,2753.6,2752.5,0.18172]
[1645877301135,3.0499,2753.6,2752.5,0.48172]
[1645877301336,0.06702681,2753.7,2752.5,1.36742]
[1645877301537,0.06702681,2753.7,2753.0,1.03205895]
[1645877301734,0.06702681,2753.7,2753.1,0.9084153]
[1645877303333,1.36263955,2753.9,2753.1,2.17411811]
[1645877303634,0.00495984,2753.5,2753.1,0.9084153]
[1645877304036,0.00495984,2753.5,2752.7,1.8168305]
[1645877304432,1.36263955,2753.8,2752.7,1.8168305]
[1645877304678,0.00496002,2753.2,2752.8,1.41948768]
[1645877305676,0.00398945,2753.8,2752.8,1.41948768]
[1645877305877,0.00496008,2753.1,2752.8,1.41948768]
[1645877306277,0.00496008,2753.1,2752.8,2.99124408]
[1645877306675,0.00496008,2753.1,2752.8,3.99124408]
[1645877306875,0.00398945,2754.0,2752.8,3.08283768]
[1645877307076,0.00496011,2753.1,2752.8,3.08283768]
[1645877307477,0.00496011,2753.1,2752.8,3.99119768]
[1645877308081,0.00398945,2754.0,2752.8,3.99119768]
[1645877308082,0.90667878,2753.8,2752.8,3.99119768]
[1645877308340,0.00496011,2753.1,2752.8,3.99119768]
[1645877308527,0.00496011,2753.1,2752.9,0.9083798]
[1645877308730,0.00496011,2753.1,2753.0,0.3]
[1645877309329,0.00398945,2753.8,2753.0,0.3]
[1645877309732,0.00398945,2753.8,2753.1,0.9083645]
[1645877309934,0.90667878,2754.0,2753.1,0.9083645]
[1645877310132,0.00398945,2753.9,2753.1,1.2083645]
[1645877310332,0.90667878,2754.0,2753.1,1.2083645]
[1645877310635,0.00398945,2753.9,2753.1,2.23556548]
[1645877310836,0.90667878,2754.0,2753.1,2.23556548]
[1645877311034,0.00398945,2753.9,2753.1,2.23556548]
[1645877311235,0.90667878,2754.0,2753.1,2.41724548]
[1645877311438,1.36263955,2754.2,2753.1,2.41724548]
[1645877311439,0.91066823,2753.9,2753.1,2.41724548]
[1645877311635,0.90667878,2754.0,2753.1,4.23386988]
[1645877311836,0.90667878,2754.0,2753.1,4.05218988]
[1645877312072,0.00495547,2753.7,2753.1,4.05218988]
[1645877312976,0.00398945,2753.9,2753.1,4.05218988]
[1645877313179,0.00495429,2753.5,2753.1,4.05218988]
[1645877313379,0.00495429,2753.5,2753.3,0.18166]
[1645877313976,0.00398945,2753.9,2753.3,0.18166]
[1645877314177,0.90667878,2754.1,2753.3,0.18166]
[1645877314377,0.00495429,2753.5,2753.3,0.18166]
[1645877315481,0.00398945,2754.0,2753.3,0.18166]
[1645877315684,0.00495429,2753.5,2753.3,0.18166]
[1645877316529,0.00398945,2754.0,2753.3,0.18166]
[1645877316731,0.00429563,2753.5,2753.3,0.18166]
[1645877316932,0.00429563,2753.5,2753.2,0.3]
[1645877317531,0.00429563,2753.5,2753.1,0.3]
[1645877317731,0.91066823,2753.9,2753.0,1.4994]
[1645877317934,0.00429566,2753.5,2753.0,1.1994]
[1645877318434,0.00429566,2753.5,2752.4,4.6245]
[1645877318630,0.91496389,2753.5,2752.4,4.6245]
[1645877318830,0.91066823,2753.5,2752.4,0.25]
[1645877319229,0.00429586,2753.1,2752.3,5.87049702]
[1645877319680,0.00429586,2753.1,2752.3,7.68761762]
[1645877319877,0.00429586,2753.1,2752.3,7.98761762]
[1645877320077,0.91066823,2753.5,2752.4,1.0383505]
[1645877320278,0.91066823,2753.5,2752.5,0.908567]
[1645877320478,0.00495599,2752.8,2752.5,0.908567]
[1645877320680,0.00495599,2752.8,2752.5,1.20732644]
[1645877321281,0.91066823,2753.5,2752.5,1.20732644]
[1645877321479,20.0,2753.0,2752.5,1.20732644]
[1645877321681,0.00495602,2752.8,2752.5,1.20732644]
[1645877322579,20.0,2753.0,2752.5,1.20732644]
[1645877322781,0.00495602,2752.8,2752.5,1.20732644]
[1645877323423,0.00495602,2752.8,2752.5,0.90732644]
[1645877323823,20.0,2753.0,2752.5,0.90732644]
[1645877324025,0.00495602,2752.8,2752.5,0.90732644]
[1645877324828,20.0,2753.0,2752.5,0.90732644]
[1645877325026,20.0,2753.0,2752.4,0.18172]
[1645877325226,0.00495602,2752.8,2752.4,0.18172]
[1645877326229,20.0,2753.0,2752.4,0.18172]
[1645877326427,0.00495605,2752.7,2752.4,0.18172]
[1645877327281,20.0,2753.0,2752.4,0.18172]
[1645877327475,0.00429292,2752.7,2752.4,0.18172]
[1645877328476,20.00398945,2753.0,2752.4,0.18172]
[1645877328778,0.00429292,2752.7,2752.4,0.18172]
[1645877329175,0.00429292,2752.7,2752.3,2.12141405]
[1645877329577,0.00429292,2752.7,2752.3,0.00429345]
[1645877329778,20.91066823,2753.0,2752.2,2.1172095]
[1645877329980,0.00429294,2752.6,2752.3,0.0042934]
[1645877330838,0.00398945,2752.9,2752.2,2.2989495]
[1645877331033,20.90667878,2753.0,2752.2,2.1172095]
[1645877331234,0.00429289,2752.6,2752.3,0.00429339]
[1645877332134,0.91066823,2752.9,2752.3,0.9086015]
[1645877332335,0.00435971,2752.6,2752.3,1.21296172]
[1645877333338,0.90667878,2752.9,2751.9,5.4645]
[1645877333541,0.00435971,2752.6,2752.3,0.00436022]
[1645877333738,0.12764638,2752.6,2752.3,0.00436022]
[1645877333937,1.03432516,2752.6,2752.3,0.00436022]
[1645877334139,0.90667878,2752.5,2752.3,0.00436022]
[1645877334338,1.03432516,2752.6,2752.3,0.00436022]
[1645877334574,1.03432516,2752.6,2751.7,0.25]
[1645877334575,1.02996545,2752.6,2751.7,0.25]
[1645877334779,1.03432511,2752.6,2752.3,0.00436025]
[1645877334980,0.90667878,2752.5,2752.3,0.00436025]
[1645877335178,0.12764633,2752.6,2752.3,0.00436025]
[1645877335179,0.90667878,2752.4,2752.3,0.00436025]
[1645877335780,0.90667878,2752.4,2751.7,0.25]
[1645877335980,0.90667878,2752.4,2752.2,0.00435355]
[1645877336381,0.90667878,2752.5,2752.2,0.00435355]
[1645877336582,0.90667878,2752.4,2752.2,0.00435355]
[1645877336983,0.90667878,2752.4,2751.4,1.697832]
[1645877337183,0.90667878,2752.4,2752.2,0.00435357]
[1645877338182,0.90667878,2752.4,2751.4,1.397832]
[1645877338183,0.90667878,2752.5,2751.4,1.397832]
[1645877338423,0.90667878,2752.5,2752.2,0.00435357]
[1645877338825,0.1227551,2752.4,2752.2,0.00435357]
[1645877339426,0.1227551,2752.4,2751.5,0.9089157]
[1645877339629,0.1227551,2752.4,2752.2,0.00435426]
[1645877340629,0.1227551,2752.4,2751.5,0.9089157]
[1645877340630,0.1227551,2752.4,2751.5,4.4089157]